bitfinex-derivatives/quotes_SOLF0:USTF0_20250518
["timestamp","ask_amount","ask_price","bid_price","bid_amount"]
[1747597082136,3.9758785,168.16,168.11,110.8735]
[1747597082939,3.9758785,168.16,168.12,5.9459]
[1747597083134,5.9439,168.19,168.12,5.9459]
[1747597083339,5.9433,168.21,168.14,5.9453]
[1747597083640,2.0303,168.24,168.11,110.8735]
[1747597084937,107.16,168.25,168.11,110.8735]
[1747597084938,5.9426,168.22,168.11,110.8735]
[1747597085640,5.9426,168.22,168.17,5.9443]
[1747597085939,107.16,168.25,168.11,110.8735]
[1747597086140,2.71972559,168.24,168.12,1.9655]
[1747597086342,5.9428,168.22,168.12,1.9655]
[1747597086546,107.16,168.25,168.12,1.9655]
[1747597086844,5.9423,168.23,168.17,5.944]
[1747597087034,107.16,168.25,168.12,1.9655]
[1747597087838,5.944,168.18,168.13,5.9456]
[1747597088047,107.16,168.25,168.12,1.9655]
[1747597089344,5.9421,168.24,168.18,5.9437]
[1747597089645,107.16,168.25,168.12,1.9655]
[1747597089844,29.0793,168.26,168.12,1.9655]
[1747597090447,29.0793,168.26,168.13,107.08]
[1747597090748,29.0793,168.26,168.12,1.9655]
[1747597091051,29.0793,168.26,168.12,109.0255]
[1747597091445,2.0793,168.26,168.12,109.0255]
[1747597091643,2.0793,168.26,168.18,5.9436]
[1747597091840,2.0793,168.26,168.12,109.0255]
[1747597092145,2.0793,168.26,168.12,1.9655]
[1747597092346,5.9439,168.19,168.12,1.9655]
[1747597092547,2.0793,168.26,168.12,1.9655]
[1747597093252,2.0793,168.26,168.11,110.8735]
[1747597093443,14.54652541,168.23,168.11,108.86]
[1747597093750,242.82,168.22,168.09,514.0]
[1747597093951,14.54652541,168.19,168.0,513.68]
[1747597094148,3.9616,168.18,168.03,114.31557504]
[1747597094344,27.0,168.17,168.05,5.9485]
[1747597094552,215.82,168.16,168.03,114.31557504]
[1747597094842,5.9472,168.09,168.04,5.9486]
[1747597095054,215.82,168.16,168.03,5.51557504]
[1747597095349,14.54652541,168.14,168.03,5.51557504]
[1747597095751,215.82,168.16,168.03,5.51557504]
[1747597095952,215.82,168.16,168.0,626.2816]
[1747597097451,215.82,168.16,168.05,5.9483]
[1747597097651,215.82,168.16,168.0,626.2816]
[1747597097955,215.82,168.16,168.05,5.9484]
[1747597098146,215.82,168.16,168.0,626.2816]
[1747597098354,215.82,168.16,168.01,107.0]
[1747597098654,28.8993,168.17,168.01,107.0]
[1747597098851,28.8993,168.17,168.01,121.54652541]
[1747597099252,28.8993,168.17,168.01,107.0]
[1747597099453,135.8793,168.17,168.01,107.0]
[1747597099653,5.9458,168.13,168.09,5.9471]
[1747597099855,5.9458,168.13,168.01,107.0]
[1747597100156,5.9457,168.14,168.01,107.0]
[1747597100454,135.8793,168.17,168.01,107.0]
[1747597101053,5.9461,168.13,168.08,5.9473]
[1747597101459,135.8793,168.17,168.01,107.0]
[1747597101657,106.98,168.17,168.01,107.0]
[1747597102156,106.98,168.17,168.03,14.54652541]
[1747597102761,5.945,168.16,168.1,5.9465]
[1747597103258,106.98,168.17,168.08,107.0]
[1747597103957,5.945,168.16,168.11,5.9461]
[1747597104160,106.98,168.17,168.08,107.0]
[1747597104358,106.98,168.17,168.06,5.948]
[1747597104558,121.52652541,168.17,168.05,107.0]
[1747597104954,27.0,168.16,168.01,1.8723]
[1747597105159,27.0,168.15,168.01,1.8723]
[1747597105457,14.54652541,168.13,168.01,1.8723]
[1747597106358,135.9325,168.14,168.01,1.8723]
[1747597106762,5.9444,168.17,168.12,5.946]
[1747597106959,3.9616,168.18,168.06,107.0]
[1747597107656,9.9056,168.18,168.06,107.0]
[1747597108063,3.9616,168.18,168.06,107.0]
[1747597108263,3.9616,168.18,168.14,5.9453]
[1747597108455,3.9616,168.18,168.08,106.86]
[1747597109064,2.0343,168.23,168.08,106.86]
[1747597109265,2.0343,168.23,168.09,5.6401]
[1747597109453,5.9426,168.22,168.09,5.6401]
[1747597109657,2.0343,168.23,168.09,5.6401]
[1747597110062,2.0343,168.23,168.05,5.51557504]
[1747597110262,14.54459221,168.16,168.05,5.51557504]
[1747597110460,5.9474,168.09,168.05,5.51557504]
[1747597110660,217.8287,168.15,168.05,5.51557504]
[1747597110869,1.9154,168.14,168.05,5.51557504]
[1747597112668,106.84,168.15,168.05,5.51557504]
[1747597113276,107.0,168.2,168.05,5.51557504]
[1747597113465,112.9436,168.2,168.14,5.9454]
[1747597113661,107.0,168.2,168.14,5.9454]
[1747597114566,5.9438,168.19,168.14,5.9454]
[1747597114770,112.7486,168.21,168.1,107.0]
[1747597115370,5.9486,168.21,168.1,108.9578]
[1747597115558,5.9436,168.2,168.1,108.9578]
[1747597115760,5.9486,168.21,168.1,108.9578]
[1747597115964,5.9486,168.21,168.1,110.8254]
[1747597116668,11.8916,168.21,168.1,110.8254]
[1747597117073,5.9486,168.21,168.1,110.8254]
[1747597117567,5.9486,168.21,168.15,5.945]
[1747597117768,5.9486,168.21,168.1,110.8254]
[1747597118276,5.9433,168.2,168.1,110.8254]
[1747597118469,5.9486,168.21,168.1,110.8254]
[1747597118666,27.0,168.29,168.1,110.8254]
[1747597118870,5.9419,168.24,168.19,5.9433]
[1747597119175,5.7762,168.28,168.16,107.0]
[1747597119568,2.71978872,168.27,168.16,107.0]
[1747597119768,112.4562,168.28,168.16,107.0]
[1747597119973,5.9415,168.25,168.2,5.943]
[1747597120168,112.4562,168.28,168.16,107.0]
[1747597120471,2.72078995,168.27,168.16,107.0]
[1747597120673,5.9421,168.24,168.19,5.9436]
[1747597120870,112.4562,168.28,168.16,107.0]
[1747597121076,2.7226603,168.27,168.12,513.78]
[1747597121274,5.944,168.18,168.14,5.9453]
[1747597121671,106.62,168.21,168.11,106.98]
[1747597121875,8.66704214,168.2,168.16,5.9444]
[1747597122077,106.62,168.21,168.11,106.98]
[1747597122271,106.98,168.24,168.11,106.98]
[1747597122479,109.32432752,168.23,168.11,106.98]
[1747597122773,2.72432752,168.22,168.11,106.98]
[1747597123170,2.72432752,168.22,168.19,5.9436]
[1747597123376,112.5422,168.23,168.19,5.9436]
[1747597123681,2.72666334,168.22,168.11,106.98]
[1747597123873,106.6,168.23,168.11,106.98]
[1747597124472,27.0,168.25,168.11,106.98]
[1747597124975,2.73151953,168.24,168.11,106.98]
[1747597125176,2.73127454,168.23,168.11,106.98]
[1747597125376,27.0,168.25,168.11,106.98]
[1747597125687,2.73114008,168.24,168.11,106.98]
[1747597125879,2.73114008,168.23,168.18,5.9437]
[1747597126083,2.73114008,168.22,168.18,5.9437]
[1747597126280,5.9421,168.24,168.13,106.52]
[1747597126477,2.73156421,168.23,168.13,106.52]
[1747597126779,106.56,168.27,168.13,106.52]
[1747597126980,2.73124419,168.26,168.13,106.52]
[1747597127186,5.9421,168.24,168.13,106.52]
[1747597127384,2.73124419,168.23,168.19,5.9435]
[1747597127573,5.9421,168.24,168.19,5.9435]
[1747597127773,2.7311719,168.23,168.19,5.9435]
[1747597127975,2.73114122,168.22,168.1,3.8254]
[1747597128183,109.19114122,168.21,168.1,3.8254]
[1747597128377,5.9449,168.16,168.09,7.38297504]
[1747597128580,2.72964056,168.15,168.07,5.51557504]
[1747597128878,5.9461,168.12,168.07,5.51557504]
[1747597129081,14.54459221,168.18,168.07,5.51557504]
[1747597129276,106.44,168.15,168.07,5.51557504]
[1747597129475,2.72860041,168.14,168.07,5.51557504]
[1747597129674,2.72860041,168.13,168.07,5.51557504]
[1747597129882,2.72860041,168.12,168.07,5.51557504]
[1747597130076,106.44,168.15,168.08,5.9474]
[1747597130271,106.44,168.15,168.07,5.51557504]
[1747597130272,2.72681309,168.14,168.07,5.51557504]
[1747597130475,2.72681309,168.13,168.07,5.51557504]
[1747597130675,2.72554906,168.12,168.08,5.9472]
[1747597130880,106.44,168.15,168.08,5.9472]
[1747597131183,5.9458,168.13,168.09,5.9471]
[1747597131382,2.72433744,168.12,168.09,5.9471]
[1747597131583,106.44,168.15,168.07,5.51557504]
[1747597131782,2.72464831,168.14,168.07,5.51557504]
[1747597131980,106.44,168.15,168.07,5.51557504]
[1747597132184,106.38,168.18,168.13,5.9455]
[1747597132378,2.72474048,168.17,168.07,5.51557504]
[1747597132579,2.72474048,168.17,168.05,106.46]
[1747597133385,106.48,168.16,168.05,106.46]
[1747597133587,2.72474048,168.15,168.05,106.46]
[1747597133884,2.72474048,168.14,168.05,106.46]
[1747597134085,2.72474048,168.13,168.05,106.46]
[1747597134280,2.72474048,168.12,168.05,106.46]
[1747597134479,2.72265467,168.11,168.08,5.9472]
[1747597134781,106.34,168.12,168.08,5.9472]
[1747597135181,106.34,168.12,168.01,3.7893]
[1747597136387,106.48,168.16,168.01,3.7893]
[1747597136787,106.3,168.17,168.02,14.54459221]
[1747597137086,8.66953093,168.16,168.1,5.9465]
[1747597137288,5.9449,168.16,168.1,5.9465]
[1747597137688,5.9449,168.16,168.11,5.9464]
[1747597138085,106.3,168.17,168.07,106.5]
[1747597138288,2.72354319,168.16,168.11,5.9463]
[1747597138484,2.72315093,168.15,168.07,106.5]
[1747597138681,2.72315093,168.14,168.02,106.5]
[1747597138881,2.72315093,168.13,168.02,106.5]
[1747597139085,2.72315093,168.12,168.02,106.5]
[1747597139385,106.3,168.17,168.02,106.5]
[1747597139591,2.72252315,168.16,168.02,106.5]
[1747597139788,106.3,168.17,168.02,106.5]
[1747597140192,5.9447,168.16,168.11,5.9463]
[1747597140583,106.3,168.17,168.02,106.5]
[1747597140782,2.72242522,168.16,168.02,106.5]
[1747597140978,4.1043,168.19,168.03,14.54459221]
[1747597141280,2.7229255,168.18,168.03,14.54459221]
[1747597141482,2.0534,168.19,168.03,14.54459221]
[1747597141685,2.72380237,168.18,168.04,212.68]
[1747597141893,5.9452,168.15,168.04,212.68]
[1747597142090,2.0534,168.19,168.04,212.68]
[1747597142389,5.9446,168.17,168.11,5.9462]
[1747597142589,2.0534,168.19,168.04,212.68]
[1747597142786,2.72440299,168.18,168.04,212.68]
[1747597142982,2.0534,168.19,168.04,212.68]
[1747597143383,5.39626653,168.22,168.04,212.68]
[1747597143580,2.7250142,168.21,168.07,14.54459221]
[1747597143780,6.5851858,168.22,168.08,515.709]
[1747597143990,6.5851858,168.22,168.09,2.0393]
[1747597144191,6.5851858,168.22,168.1,1.8767]
[1747597144390,2.72512055,168.21,168.1,108.3767]
[1747597144586,17.26926427,168.2,168.09,2.0393]
[1747597144790,2.72467206,168.19,168.08,620.28]
[1747597145088,2.72467206,168.18,168.08,106.48]
[1747597145393,2.72362428,168.17,168.08,106.48]
[1747597145594,4.76272428,168.16,168.08,106.48]
[1747597145796,5.9465,168.11,168.03,11.26690173]
[1747597145998,5.9465,168.11,168.04,106.48]
[1747597146195,107.9797,168.15,168.03,11.26690173]
[1747597146393,5.9471,168.1,168.04,5.9488]
[1747597146695,106.48,168.14,168.03,7.35090173]
[1747597146884,5.9468,168.1,168.03,7.35090173]
[1747597147289,106.48,168.14,168.03,7.35090173]
[1747597147595,5.9462,168.12,168.03,7.35090173]
[1747597148090,106.48,168.14,168.03,7.35090173]
[1747597148796,107.9197,168.15,168.03,7.35090173]
[1747597148988,106.0,168.15,168.03,113.33090173]
[1747597149303,106.0,168.15,168.04,1.9727]
[1747597149693,106.0,168.15,168.05,1.8964]
[1747597149897,2.0391,168.16,168.12,5.9461]
[1747597150598,2.0391,168.16,168.08,106.5]
[1747597150795,2.71991803,168.15,168.08,106.5]
[1747597151000,2.71991803,168.14,168.08,106.5]
[1747597151200,2.71987476,168.13,168.06,1.9954]
[1747597151401,2.0391,168.16,168.05,1.8964]
[1747597151609,5.9455,168.14,168.05,1.8964]
[1747597151907,2.72036033,168.13,168.05,1.8964]
[1747597152106,5.9455,168.14,168.1,5.9467]
[1747597152304,2.0391,168.16,168.05,1.8964]
[1747597152503,2.72007789,168.15,168.05,1.8964]
[1747597152705,2.72007789,168.14,168.12,5.9461]
[1747597152905,2.0391,168.16,168.06,105.88]
[1747597153509,2.0391,168.16,168.05,1.8964]
[1747597153707,2.72033471,168.15,168.05,1.8964]
[1747597154008,2.0391,168.16,168.05,1.8964]
[1747597154205,2.72026232,168.15,168.05,1.8964]
[1747597154406,2.0391,168.16,168.05,1.8964]
[1747597154601,2.71990659,168.15,168.05,1.8964]
[1747597155607,2.0391,168.16,168.05,1.8964]
[1747597156411,5.9441,168.18,168.05,1.8964]
[1747597156604,119.71796653,168.19,168.05,1.8964]
[1747597156911,117.83996653,168.19,168.05,1.8964]
[1747597157208,117.83996653,168.19,168.14,5.945]
[1747597157407,111.89626653,168.19,168.08,105.76]
[1747597157606,5.39626653,168.19,168.09,1.9212]
[1747597157807,5.39626653,168.19,168.1,106.5]
[1747597158308,1.9118,168.2,168.1,106.5]
[1747597158616,2.72134414,168.19,168.05,1.8964]
[1747597158913,2.72134414,168.18,168.06,105.74]
[1747597159211,16.51849221,168.19,168.06,105.74]
[1747597159212,2.72134414,168.17,168.06,105.74]
[1747597159412,2.72134414,168.16,168.06,105.74]
[1747597159609,5.9454,168.15,168.06,105.74]
[1747597159812,5.9454,168.15,168.1,5.9466]
[1747597160115,5.9454,168.15,168.06,105.74]
[1747597160316,16.51849221,168.19,168.13,5.9455]
[1747597160515,2.72063976,168.18,168.13,5.9455]
[1747597160711,1.9739,168.19,168.06,105.74]
[1747597161012,7.30806653,168.2,168.06,105.74]
[1747597161213,7.30806653,168.2,168.05,1.8964]
[1747597161414,2.72123669,168.19,168.06,211.38]
[1747597161712,7.30806653,168.2,168.06,211.38]
[1747597162014,2.7213273,168.19,168.05,1.8964]
[1747597162206,2.7213273,168.18,168.05,107.6364]
[1747597162406,108.4406609,168.17,168.08,5.9474]
[1747597162606,4.5866609,168.16,168.05,107.6364]
[1747597162808,2.7206609,168.15,168.05,107.6364]
[1747597163115,1.866,168.16,168.05,107.6364]
[1747597163320,2.72067095,168.15,168.05,107.6364]
[1747597163619,2.72067095,168.14,168.05,105.74]
[1747597163810,2.72067095,168.13,168.05,105.74]
[1747597164116,4.60832913,168.12,168.08,5.9472]
[1747597164314,1.8875,168.12,168.05,105.74]
[1747597164517,5.9475,168.09,168.04,5.9488]
[1747597164714,1.8875,168.12,168.0,515.6456]
[1747597164913,108.44062776,168.11,168.0,515.6456]
[1747597165118,2.72062776,168.1,168.05,5.9483]
[1747597165322,108.24062776,168.09,168.0,515.6456]
[1747597165510,108.24062776,168.09,167.99,113.07090173]
[1747597165511,2.72062776,168.08,167.99,113.07090173]
[1747597165714,2.72062776,168.07,167.99,113.07090173]
[1747597166015,2.72062776,168.06,168.01,5.9499]
[1747597166315,5.9503,168.01,167.94,105.74]
[1747597166511,120.02459221,168.03,167.91,528.66271466]
[1747597166716,1.8875,168.0,167.91,14.88271466]
[1747597167316,1.8875,168.0,167.96,5.9517]
[1747597167509,1.8875,168.0,167.91,12.86501466]
[1747597167706,25.56493618,168.0,167.91,10.92691466]
[1747597167906,5.9512,167.98,167.91,10.92691466]
[1747597168112,105.44,167.97,167.92,5.9531]
[1747597168318,105.44,167.97,167.91,10.92691466]
[1747597168523,105.44,167.97,167.96,5.9518]
[1747597168910,1.8875,168.0,167.96,5.9518]
[1747597169320,1.8875,168.0,167.91,10.92691466]
[1747597170119,23.67743618,168.04,167.92,105.76]
[1747597170120,105.4,168.04,167.92,105.76]
[1747597170325,1.9796,168.03,167.99,5.9506]
[1747597170923,1.9796,168.03,168.0,5.9503]
[1747597171122,1.9796,168.03,167.92,105.76]
[1747597173030,4.0475,168.07,167.94,1.8638]
[1747597173321,2.70696173,168.06,167.95,1.8641]
[1747597173622,2.70696173,168.05,167.95,1.8641]
[1747597173825,27.72493618,168.07,167.95,1.8641]
[1747597174017,4.0475,168.07,167.95,1.8641]
[1747597174222,5.9486,168.05,167.99,5.9506]
[1747597174621,4.0475,168.07,167.95,1.8641]
[1747597174823,5.9518,167.96,167.91,10.92691466]
[1747597175022,107.2434,167.95,167.91,2.22051466]
[1747597175225,130.92083618,167.95,167.91,2.22051466]
[1747597175727,23.67743618,167.99,167.91,2.22051466]
[1747597175926,5.9517,167.97,167.91,8.17381466]
[1747597176225,105.24,167.98,167.91,2.22051466]
[1747597176815,514.06,168.0,167.91,2.22051466]
[1747597177018,619.28,168.0,167.91,2.22051466]
[1747597177312,619.26,168.0,167.91,2.22051466]
[1747597178028,5.9511,167.98,167.92,5.9532]
[1747597178222,210.98,167.99,167.91,2.22051466]
[1747597178727,619.24,168.0,167.91,2.22051466]
[1747597179025,619.24,168.0,167.88,3.833]
[1747597179026,514.06,168.0,167.88,3.833]
[1747597180029,514.06,168.0,167.95,5.9518]
[1747597180224,5.39626653,168.03,167.89,105.8]
[1747597180621,5.9497,168.02,167.97,5.9514]
[1747597180928,5.39626653,168.03,167.89,105.8]
[1747597181226,5.39626653,168.03,167.97,5.9511]
[1747597181430,5.39626653,168.03,167.89,105.8]
[1747597181623,5.39626653,168.03,167.98,5.9508]
[1747597181822,5.39626653,168.03,167.89,105.8]
[1747597182329,5.39626653,168.03,167.99,5.9504]
[1747597182527,105.16,168.04,167.89,105.8]
[1747597183324,5.95,168.01,167.97,5.9514]
[1747597183529,105.16,168.04,167.89,105.8]
[1747597183920,5.9497,168.02,167.89,105.8]
[1747597184125,105.16,168.04,167.89,105.8]
[1747597184625,5.9494,168.03,167.97,5.9512]
[1747597185028,5.9494,168.03,167.89,105.8]
[1747597185331,105.16,168.04,167.89,105.8]
[1747597185625,105.16,168.04,167.98,5.9507]
[1747597185932,105.16,168.04,167.89,105.8]
[1747597186325,105.16,168.04,167.98,5.9509]
[1747597186525,105.16,168.04,167.89,105.8]
[1747597187627,105.8,168.05,167.89,105.8]
[1747597187827,105.8,168.05,167.89,129.47743618]
[1747597188229,27.0,168.09,167.9,11.9077]
[1747597188437,131.94,168.09,167.9,11.9077]
[1747597188734,5.9477,168.08,167.9,11.9077]
[1747597189035,131.94,168.09,167.9,11.9077]
[1747597189630,5.9483,168.06,167.9,11.9077]
[1747597189936,5.9479,168.07,168.02,5.9495]
[1747597190434,104.94,168.09,167.9,11.9077]
[1747597190637,26.3765002,168.08,167.98,3.9834]
[1747597190832,2.69896914,168.07,167.98,3.9834]
[1747597191034,5.9493,168.03,167.98,9.9342]
[1747597191535,5.949,168.04,167.99,5.9506]
[1747597191735,119.49496118,168.09,167.98,3.9834]
[1747597192036,104.82,168.08,167.98,3.9834]
[1747597192432,109.63142755,168.08,167.98,3.9834]
[1747597192738,5.9492,168.04,167.98,9.9341]
[1747597192938,5.9492,168.04,167.98,3.9834]
[1747597193127,109.63142755,168.08,167.98,3.9834]
[1747597193327,5.9489,168.05,168.0,5.9501]
[1747597193537,5.9489,168.05,167.98,3.9834]
[1747597193732,109.63142755,168.08,167.98,3.9834]
[1747597193935,5.9496,168.02,167.98,9.9344]
[1747597194136,4.81142755,168.07,167.98,3.9834]
[1747597194338,14.55496118,168.05,167.92,1.9914]
[1747597194538,2.69906524,168.04,167.95,5.9519]
[1747597194838,14.55496118,168.05,167.95,5.9519]
[1747597195038,5.9509,167.99,167.95,5.9519]
[1747597195339,14.55496118,168.01,167.9,1.9234]
[1747597195537,2.69761792,168.0,167.9,1.9234]
[1747597195741,14.55496118,168.01,167.93,5.9526]
[1747597195938,5.9516,167.97,167.93,5.9526]
[1747597196138,5.9516,167.97,167.9,1.9234]
[1747597196327,14.55496118,168.01,167.9,1.9234]
[1747597196528,5.9516,167.97,167.9,1.9234]
[1747597197034,5.9511,167.98,167.9,1.9234]
[1747597197239,14.55496118,168.01,167.9,1.9234]
[1747597197539,14.55496118,168.01,167.92,5.953]
[1747597197838,5.9514,167.98,167.92,5.953]
[1747597198040,5.9514,167.98,167.93,5.9528]
[1747597198339,5.9514,167.97,167.9,1.9234]
[1747597198542,104.74,168.02,167.9,1.9234]
[1747597199534,5.9508,167.99,167.94,5.9523]
[1747597200242,104.74,168.02,167.9,1.9234]
[1747597200943,23.66933842,167.99,167.88,104.94]
[1747597201142,1.9151,167.98,167.88,104.94]
[1747597201343,5.9521,167.95,167.88,104.94]
[1747597201545,104.54,168.01,167.88,104.94]
[1747597201932,5.9516,167.97,167.92,5.9529]
[1747597202242,104.54,168.01,167.88,104.94]
[1747597202540,5.9513,167.98,167.88,104.94]
[1747597202744,233.10933842,168.03,167.88,104.94]
[1747597203243,5.9511,167.98,167.93,5.9526]
[1747597203445,233.10933842,168.03,167.88,104.94]
[1747597203646,209.44,168.03,167.88,104.94]
[1747597204243,4.8072041,168.02,167.88,104.94]
[1747597206048,4.8072041,168.01,167.88,104.94]
[1747597206546,23.66933842,167.99,167.88,110.8945]
[1747597206736,2.70822079,167.98,167.88,110.8945]
[1747597206939,2.70822079,167.97,167.88,110.8945]
[1747597207136,2.70990611,167.96,167.88,104.94]
[1747597207345,2.70978606,167.95,167.88,104.94]
[1747597207541,2.70922046,167.94,167.86,1.9914]
[1747597207747,26.37855888,167.93,167.83,106.8054]
[1747597207947,2.70922046,167.92,167.83,106.8054]
[1747597208147,107.04922046,167.91,167.83,106.8054]
[1747597208348,2.70922046,167.9,167.83,104.94]
[1747597208548,2.70922046,167.9,167.79,3.9528]
[1747597208751,5.9552,167.87,167.82,5.9564]
[1747597208948,5.9552,167.87,167.79,3.9528]
[1747597209251,5.9552,167.87,167.83,5.9563]
[1747597209452,104.34,167.91,167.79,3.9528]
[1747597209647,4.8072041,167.89,167.79,3.9528]
[1747597210555,4.8072041,167.89,167.88,5.9546]
[1747597210852,5.39626653,167.91,167.79,3.9528]
[1747597211041,5.9542,167.9,167.84,5.9559]
[1747597211244,5.39626653,167.91,167.79,108.9328]
[1747597211654,11.35006653,167.91,167.84,5.9559]
[1747597211856,5.39626653,167.91,167.79,108.9328]
[1747597212153,5.39626653,167.91,167.85,5.9556]
[1747597212350,5.39626653,167.91,167.79,108.9328]
[1747597213254,11.35006653,167.91,167.85,5.9554]
[1747597213469,5.9538,167.91,167.85,5.9554]
[1747597214653,5.954,167.9,167.85,5.9554]
[1747597214850,106.2364,167.94,167.85,5.9554]
[1747597215154,5.9538,167.91,167.85,5.9554]
[1747597215448,106.2364,167.94,167.86,5.9552]
[1747597215856,110.33626653,167.96,167.85,104.98]
[1747597216152,110.33626653,167.96,167.89,5.954]
[1747597216452,2.7061074,167.95,167.86,10.0487]
[1747597216750,2.70597809,167.94,167.85,104.98]
[1747597216950,2.70563753,167.93,167.8,109.0754]
[1747597217150,128.60933842,167.96,167.83,5.9563]
[1747597217351,5.9546,167.88,167.83,5.9563]
[1747597217757,128.60933842,167.96,167.81,5.9568]
[1747597217948,23.66933842,167.92,167.8,4.0954]
[1747597218151,110.79700928,167.91,167.79,2.0234]
[1747597218350,106.76390928,167.9,167.81,5.957]
[1747597218550,104.06,167.9,167.79,2.0234]
[1747597219057,5.955,167.87,167.79,2.0234]
[1747597219461,104.06,167.9,167.77,104.06]
[1747597219661,2.70146488,167.89,167.77,104.06]
[1747597219854,2.70116198,167.88,167.79,5.9575]
[1747597220051,1.708,167.89,167.77,104.06]
[1747597220255,5.9568,167.82,167.77,104.06]
[1747597220765,104.0,167.85,167.71,108.0905]
[1747597221263,104.0,167.86,167.78,5.9579]
[1747597221463,104.0,167.86,167.71,108.0905]
[1747597221761,28.708,167.89,167.71,108.0905]
[1747597221762,27.0,167.89,167.71,108.0905]
[1747597221958,27.0,167.89,167.74,14.58584803]
[1747597222159,27.0,167.89,167.75,103.96]
[1747597222360,27.0,167.89,167.76,514.52]
[1747597222662,27.0,167.89,167.84,5.9558]
[1747597222862,107.9931,167.91,167.84,5.9558]
[1747597223163,103.98,167.91,167.83,104.1]
[1747597224355,109.9338,167.91,167.86,5.9552]
[1747597224563,103.98,167.91,167.83,104.1]
[1747597224956,103.98,167.91,167.69,11.02818577]
[1747597225154,14.58584803,167.89,167.73,1.931]
[1747597225365,5.957,167.82,167.76,5.9585]
[1747597225663,103.88,167.85,167.73,1.931]
[1747597226560,104.08,167.84,167.69,11.02818577]
[1747597227164,14.58584803,167.81,167.69,11.02818577]
[1747597227467,1.8846,167.8,167.69,11.02818577]
[1747597227664,103.8,167.79,167.71,5.9605]
[1747597228059,103.8,167.79,167.69,11.02818577]
[1747597228367,14.61364157,167.76,167.69,4.81918577]
[1747597228565,2.68653932,167.75,167.56,103.8]
[1747597228761,618.48,167.77,167.6,2.0582]
[1747597228964,2.68663076,167.76,167.61,1.19324622]
[1747597229158,618.48,167.77,167.61,1.19324622]
[1747597229358,5.9604,167.72,167.65,5.9624]
[1747597229567,1.8846,167.8,167.66,1.19289037]
[1747597229866,103.76,167.78,167.66,1.19289037]
[1747597230071,103.76,167.78,167.67,2.0627]
[1747597230265,103.76,167.78,167.68,2.0582]
[1747597230458,103.76,167.78,167.68,4.0356]
[1747597231074,103.76,167.78,167.68,2.0582]
[1747597231869,105.9846,167.8,167.68,2.0582]
[1747597231870,105.5846,167.8,167.68,2.0582]
[1747597232170,105.5846,167.8,167.73,5.9596]
[1747597232371,105.5846,167.8,167.68,2.0582]
[1747597233268,23.74481731,167.77,167.58,3.99022461]
[1747597233578,104.12,167.76,167.59,3.9132]
[1747597233873,104.12,167.76,167.68,5.9616]
[1747597234273,5.9593,167.75,167.67,5.962]
[1747597234472,25.62941731,167.8,167.59,3.9132]
[1747597234673,103.64,167.75,167.59,3.9132]
[1747597234869,5.9607,167.71,167.64,5.9628]
[1747597235070,103.64,167.75,167.59,3.9132]
[1747597235268,23.74481731,167.72,167.59,3.9132]
[1747597235572,23.74481731,167.72,167.62,5.9635]
[1747597235769,23.74481731,167.72,167.59,3.9132]
[1747597236176,5.9611,167.7,167.63,5.9633]
[1747597236681,29.70541731,167.72,167.59,3.9132]
[1747597236880,23.74481731,167.72,167.59,3.9132]
[1747597237180,5.9609,167.71,167.65,5.9627]
[1747597237480,23.7684136,167.68,167.58,3.99022461]
[1747597237680,5.9632,167.64,167.58,9.95542461]